[Event "German Bundesliga 2024-25"]
[Site "Germany"]
[Date "2024.10.06"]
[Round "2.1"]
[White "Tabatabaei, M. Amin"]
[Black "Bluebaum, Matthias"]
[Result "1/2-1/2"]
[Annotator "TA"]
[ECO "C55"]
[WhiteElo "2702"]
[BlackElo "2646"]
[PlyCount "85"]
[EventDate "2024.09.27"]
[EventType "team-tourn"]
[EventCountry "GER"]
[SourceTitle "playchess.com"]
[Source "ChessBase"]
[SourceQuality "1"]
[WhiteTeam "Bayern Muenchen"]
[BlackTeam "Deizisau"]
[TimeControl "40/5400+30:1800+30"]

{[%evp 11,85,5,5,13,12,11,10,16,15,8,16,5,11,14,12,10,18,21,18,12,16,20,17,14,22,6,1,16,18,21,6,10,20,0,12,11,6,0,0,5,10,0,0,0,0,0,0,0,0,0,0,0,0,0,0,0,0,0,0,0,0,0,0,0,0,0,0,0,0,0,0,0,0,0,0,0]} 1. e4 {[%emt 0:00:45]} e5 {[%emt 0:00:09]} 2. Nf3 {[%emt 0:00:08]} Nc6 {[%emt 0:00:05]} 3. Bc4 {[%emt 0:00:39]} Nf6 {[%emt 0:00:24]} 4. d3 {[%emt 0:00:06]} Be7 {[%emt 0:00:14]} 5. O-O {[%emt 0:00:42]} O-O {[%emt 0:00:11]} 6. Nc3 {[%emt 0:00:04]} d6 {[%emt 0:00:05] The position is equal.} 7. a4 {[%emt 0:00:05]} Bg4 {[%emt 0:00:57]} 8. h3 {[%emt 0:00:08]} Bxf3 {[%emt 0:00:43]} 9. Qxf3 {[%emt 0:00:07]} Nd4 {[%emt 0:00:02][%csl LRc2,LRf3] Against Ne2} 10. Qd1 {[%emt 0:00:07]} c6 {[%emt 0:00:03]} 11. Ba2 {[%emt 0:00:49]} Ne6 {[%emt 0:00:12]} 12. Be3 {[%emt 0:00:10]} Qc7 {[%emt 0:07:26] [#]} 13. a5 $1 {[%emt 0:06:47]} b6 {[%emt 0:05:32]} 14. axb6 {[%emt 0:05:37]} axb6 {[%emt 0:00:09]} 15. Bxe6 {[%emt 0:00:07]} fxe6 {[%emt 0:00:07]} 16. Ne2 {[%emt 0:00:09]} d5 {[%emt 0:08:19]} 17. Ng3 {[%emt 0:00:11]} Qb7 {[%emt 0:03:57]} 18. b3 {[%emt 0:11:51]} Rxa1 {[%emt 0:13:32]} 19. Qxa1 {[%emt 0:00:09]} Bd6 {[%emt 0:00:06]} 20. Qd1 {[%emt 0:28:35]} Ra8 {[%emt 0:08:33]} 21. exd5 {[%emt 0:08:39]} exd5 {[%emt 0:08:25]} 22. Nf5 {[%emt 0:05:30]} Qd7 {[%emt 0:03:28]} 23. Nxd6 {[%emt 0:02:16]} Qxd6 {[%emt 0:00:06]} 24. f4 {[%emt 0:10:46]} (24. Bxb6 $2 {perishes.} c5 25. Bxc5 Qxc5 $19) 24... d4 {[%emt 0:01:43]} 25. fxe5 {[%emt 0:00:34]} Qxe5 {[%emt 0:00:02]} 26. Bf2 {[%emt 0:00:33][%cal Be3f2,Bf2g3,Bg3d6][%mdl 32]} c5 {[%emt 0:03:03]} 27. Qf3 {[%emt 0:01:20]} Qd5 {[%emt 0:01:18]} 28. Qf4 {[%emt 0:00:41]} Rf8 {[%emt 0:03:52]} 29. Bg3 {[%emt 0:06:35]} Nd7 {[%emt 0:09:01]} 30. Qc7 {[%emt 0:00:19]} Rxf1+ {[%emt 0:00:03]} 31. Kxf1 $11 {[%emt 0:00:05][%mdl 4096] Endgame. KQB-KQN} h6 {[%emt 0:00:16]} 32. Kg1 {[%emt 0:04:30]} Qe6 {[%emt 0:00:49]} 33. Bd6 {[%emt 0:00:55]} Nf6 {[%emt 0:01:17]} 34. Be5 {[%emt 0:03:43]} Nd7 {[%emt 0:00:32]} 35. Bd6 {[%emt 0:00:07]} Nf6 {[%emt 0:00:03]} 36. Be5 {[%emt 0:00:18]} Nd7 {[%emt 0:00:05]} 37. Qc8+ {[%emt 0:02:03]} Kf7 {[%emt 0:01:51]} 38. Bc7 {[%emt 0:01:14]} Qc6 {[%emt 0:02:34]} 39. Qd8 {[%emt 0:00:17]} Nf6 {[%emt 0:02:59]} 40. Bd6 {[%emt 0:02:16]} (40. Bxb6 Nd5 41. Ba5 Ne3 42. Qc7+ Qxc7 43. Bxc7 Ke6 $19) 40... Nd5 {[%emt 0:07:47]} 41. Qf8+ {[%emt 0:01:15]} Kg6 {[%emt 0:00:01] [#] And now ...Ne3 would win.} 42. Be5 {[%emt 0:01:43]} Qd7 {[%emt 0:00:20]} 43. Qf3 {[%emt 0:09:23] Not much happened in this game.   Weighted Error Value: White=0.02 (flawless) /Black=0.01 (flawless) .  OK:         	White=16    	Black=20     Best:        	White=1     	---} 1/2-1/2

[Event "German Bundesliga 2024-25"]
[Site "Germany"]
[Date "2024.10.06"]
[Round "2.1"]
[White "Nguyen, Thai Dai Van"]
[Black "Socko, Bartosz"]
[Result "1/2-1/2"]
[Annotator "TA"]
[ECO "B10"]
[WhiteElo "2663"]
[BlackElo "2554"]
[PlyCount "111"]
[EventDate "2024.09.27"]
[EventType "team-tourn"]
[EventCountry "GER"]
[SourceTitle "playchess.com"]
[Source "ChessBase"]
[SourceQuality "1"]
[WhiteTeam "TU Dresden"]
[BlackTeam "St. Pauli"]
[TimeControl "40/5400+30:1800+30"]

{[%evp 9,111,-7,25,16,26,17,15,20,49,45,52,45,62,68,78,59,81,83,71,73,75,44,71,70,71,54,77,53,58,56,59,51,64,37,69,49,52,46,44,44,54,45,44,0,49,0,59,57,93,79,111,75,74,66,74,74,79,83,70,41,33,21,31,17,62,29,42,0,0,0,0,0,0,0,0,0,0,0,0,0,0,0,0,0,0,0,0,0,0,0,0,0,0,0,0,0,0,0,0,0,0,0,0,0]} 1. e4 {[%emt 0:01:27]} c6 {[%emt 0:00:06]} 2. Nf3 {[%emt 0:00:08]} d5 {[%emt 0:00:04]} 3. d3 {[%emt 0:00:06]} dxe4 {[%emt 0:00:05]} 4. dxe4 {[%emt 0:00:04]} Qxd1+ {[%emt 0:00:06]} 5. Kxd1 {[%emt 0:00:05]} Bg4 {[%emt 0:00:07]} 6. Nbd2 {[%emt 0:01:24]} Nd7 {[%emt 0:02:31]} 7. Be2 {[%emt 0:00:11]} Bxf3 {[%emt 0:00:51]} 8. Nxf3 {[%emt 0:36:27]} e5 {[%emt 0:06:53]} 9. Nd2 {[%emt 0:07:13]} Bc5 {[%emt 0:02:44]} 10. f3 {[%emt 0:00:07]} Be3 {[%emt 0:11:59]} 11. a4 {[%emt 0:02:14]} Ngf6 {[%emt 0:04:47]} 12. c3 {[%emt 0:02:43]} Rd8 {[%emt 0:04:45]} 13. Kc2 {[%emt 0:00:37]} Ke7 {[%emt 0:07:27]} 14. b3 {[%emt 0:02:10][%cal Bb2b3,Bb3b4][%mdl 32]} Nc5 {[%emt 0:00:24] [#] Threatens to win with ...Bxd2.} 15. Rd1 {[%emt 0:00:53] Strongly threatening Ba3.} Bxd2 {[%emt 0:04:49]} 16. Bxd2 {[%emt 0:01:24]} Ne6 {[%emt 0:00:06]} 17. Be3 {[%emt 0:02:21]} a6 {[%emt 0:00:05]} 18. b4 {[%emt 0:03:28]} Rxd1 {[%emt 0:01:32]} 19. Rxd1 {[%emt 0:00:32]} Rd8 {[%emt 0:00:20]} 20. Rb1 {[%emt 0:01:39]} Ne8 {[%emt 0:01:34]} 21. Bb6 {[%emt 0:10:47]} Rd7 {[%emt 0:01:00]} 22. g3 {[%emt 0:04:31]} Nd6 {[%emt 0:00:58]} 23. Bd3 {[%emt 0:02:46]} f6 {[%emt 0:01:49]} 24. h4 {[%emt 0:00:44]} Nc8 {[%emt 0:06:20]} 25. Be3 {[%emt 0:00:44]} Nd6 {[%emt 0:00:05]} 26. Bb6 {[%emt 0:00:05]} Nc8 {[%emt 0:00:04]} 27. Be3 {[%emt 0:00:05]} Nd6 $1 {[%emt 0:00:02]} 28. f4 {[%emt 0:08:24]} exf4 {[%emt 0:02:04]} 29. gxf4 {[%emt 0:00:05]} b5 {[%emt 0:01:04]} 30. axb5 {[%emt 0:01:15]} axb5 {[%emt 0:00:08]} 31. Rg1 {[%emt 0:02:22] f5 is the strong threat.} Ke8 {[%emt 0:10:53]} 32. f5 {[%emt 0:01:39]} Nd8 {[%emt 0:00:31]} 33. Bf4 {[%emt 0:05:34] White is more active.} Nc4 {[%emt 0:01:30]} 34. Ra1 {[%emt 0:02:23] Inhibits Na3+.} Ne5 {[%emt 0:01:36]} 35. Be2 {[%emt 0:00:34]} Ndf7 {[%emt 0:00:53]} 36. Ra8+ {[%emt 0:00:14]} Ke7 {[%emt 0:01:56]} 37. Rg8 {[%emt 0:00:42]} g6 {[%emt 0:00:05]} 38. fxg6 {[%emt 0:00:47]} hxg6 {[%emt 0:01:07] The position is equal.} 39. h5 {[%emt 0:00:34]} gxh5 {[%emt 0:02:59]} 40. Bxh5 {[%emt 0:00:10]} Nd6 {[%emt 0:00:12]} 41. Bxe5 {[%emt 0:12:44]} fxe5 $11 {[%emt 0:00:10][%mdl 4096] Endgame. KRB-KRN} 42. Bg4 {[%emt 0:01:01] [#] Rg7+ would now be deadly.} Rd8 {[%emt 0:09:06]} 43. Rg7+ {[%emt 0:02:56]} Kf6 {[%emt 0:00:07]} 44. Rc7 {[%emt 0:00:12]} Nxe4 {[%emt 0:01:16]} 45. Bf3 {[%emt 0:02:35]} Nd6 {[%emt 0:00:05]} 46. Rxc6 {[%emt 0:00:15]} Kf5 {[%emt 0:00:43]} 47. Be2 {[%emt 0:00:39]} Kf4 {[%emt 0:00:17]} 48. Rb6 {[%emt 0:05:19]} e4 {[%emt 0:00:14][%cal Be5e4,Be4e3,Be3e2][%mdl 32]} 49. Bxb5 {[%emt 0:02:27]} Nxb5 {[%emt 0:00:27]} 50. Rxb5 {[%emt 0:00:03] KR-KR} e3 {[%emt 0:00:08]} 51. Rb7 {[%emt 0:00:56]} e2 {[%emt 0:06:09]} 52. Re7 {[%emt 0:00:12]} Kf3 {[%emt 0:00:04]} 53. Rf7+ {[%emt 0:03:34]} Ke3 {[%emt 0:00:47]} 54. Re7+ {[%emt 0:00:07]} Kf3 {[%emt 0:00:07]} 55. Rf7+ {[%emt 0:00:06]} Ke3 {[%emt 0:00:03] ( -> ...Re8)} 56. Re7+ {[%emt 0:00:05] Weighted Error Value: White=0.09 (flawless) /Black=0.07 (flawless) .  Inaccurate:     	White=5     	Black=6      OK:         	White=22    	Black=19     Best:        	White=1     	Black=4      Strong:       	---       	Black=1} 1/2-1/2

[Event "German Bundesliga 2024-25"]
[Site "Germany"]
[Date "2024.10.06"]
[Round "2.1"]
[White "Svane, Frederik"]
[Black "Aravindh, Chithambaram VR."]
[Result "1/2-1/2"]
[Annotator "TA"]
[ECO "C24"]
[WhiteElo "2655"]
[BlackElo "2698"]
[PlyCount "68"]
[EventDate "2024.09.27"]
[EventType "team-tourn"]
[EventCountry "GER"]
[SourceTitle "playchess.com"]
[Source "ChessBase"]
[SourceQuality "1"]
[WhiteTeam "Hamburg"]
[BlackTeam "Viernheim"]
[TimeControl "40/5400+30:1800+30"]

{[%evp 11,68,43,54,20,8,0,10,-41,-41,-50,-43,-47,-47,-49,-9,-62,0,11,35,29,66,88,66,75,94,85,89,85,75,-15,-10,-8,-9,-6,-12,-10,-12,-12,-14,-9,-11,-9,-8,-12,-14,-15,-8,-16,0,-9,-8,-6,-14,-14,0,0,0,-23,0]} 1. e4 {[%emt 0:01:59]} e5 {[%emt 0:00:12]} 2. Nf3 {[%emt 0:00:13]} Nc6 {[%emt 0:00:08]} 3. Bc4 {[%emt 0:00:15]} Nf6 {[%emt 0:00:12]} 4. d3 {[%emt 0:00:08]} d5 {[%emt 0:00:14]} 5. exd5 {[%emt 0:00:09]} Nxd5 {[%emt 0:00:06]} 6. O-O {[%emt 0:00:14]} Bg4 {[%emt 0:00:19]} 7. Nbd2 {[%emt 0:04:06][%cal Bb1d2,Bd2e4,Be4g3][%mdl 32]} f6 {[%emt 0:10:08]} 8. a4 {[%emt 0:11:10]} a6 {[%emt 0:15:55]} 9. a5 {[%emt 0:11:47]} (9. h3 $11 Bf5 10. Ne4) 9... Qd7 $15 {[%emt 0:08:54]} 10. h3 {[%emt 0:12:55]} Be6 {[%emt 0:00:29]} 11. Ne4 {[%emt 0:08:02]} O-O-O {[%emt 0:01:16]} 12. Re1 {[%emt 0:02:03]} Bg8 {[%emt 0:17:34]} 13. Bd2 {[%emt 0:08:13]} (13. c3 $11) 13... f5 {[%emt 0:04:57]} (13... Ndb4 $15 14. b3 Be7) 14. Ng3 $1 $11 {[%cal Oc4b3] Threatening Bb3!} Bd6 {[%emt 0:00:48]} 15. Bb3 $1 {[%emt 0:00:18]} Nde7 {[%emt 0:07:21]} 16. Ba4 {[%emt 0:05:30][%cal Of3e5] White is more active.} e4 {[%emt 0:00:45]} 17. dxe4 {[%emt 0:01:07] Threatens to win with Bg5.} Bxg3 {[%emt 0:00:18]} 18. fxg3 {[%emt 0:01:07]} fxe4 {[%emt 0:00:07]} 19. Rxe4 {[%emt 0:00:10] And now c4 would win.} Bd5 {[%emt 0:00:46]} 20. Rd4 {[%emt 0:02:40]} ({Better is} 20. Ne5 $16 Qd6 21. Nxc6 Nxc6 22. Qg4+ Kb8 23. Re2) 20... Bxf3 {[%emt 0:02:42]} 21. Rxd7 {[%emt 0:00:24]} Bxd1 {[%emt 0:00:08]} 22. Rxd8+ {[%emt 0:00:07]} Rxd8 {[%emt 0:00:05]} 23. Rxd1 {[%emt 0:00:07]} Nxa5 {[%emt 0:01:12]} 24. c3 $1 {[%emt 0:00:31]} b5 {[%emt 0:01:16]} 25. Bc2 {[%emt 0:00:23]} Nc4 {[%emt 0:01:36][%csl LRb2,LRd2]} 26. Bc1 {[%emt 0:00:06]} Rxd1+ {[%emt 0:00:55]} 27. Bxd1 {[%emt 0:00:07][%mdl 4096] Endgame. KBB-KNN} Kd7 {[%emt 0:04:01]} 28. Kf2 {[%emt 0:03:10]} Nd5 {[%emt 0:05:19]} 29. Kf3 {[%emt 0:11:06]} c5 {[%emt 0:06:51]} 30. Ke4 Nf6+ {[%emt 0:01:03]} 31. Kf5 {[%emt 0:00:24]} Nd6+ {[%emt 0:00:32]} 32. Ke5 {[%emt 0:00:10]} Nc4+ {[%emt 0:01:29]} 33. Kf5 {[%emt 0:00:05]} Nd6+ {[%emt 0:02:06]} 34. Ke5 {[%emt 0:00:06]} Nc4+ {[%emt 0:00:06] Weighted Error Value: White=0.14 (very precise) /Black=0.10 (very precise) .  Mistake:       	White=3     	Black=1      Inaccurate:     	---       	Black=2      OK:         	White=13    	Black=16     Best:        	---       	Black=2      Strong:       	White=3     	---} 1/2-1/2

[Event "German Bundesliga 2024-25"]
[Site "Germany"]
[Date "2024.09.29"]
[Round "2.1"]
[White "Beerdsen, Thomas"]
[Black "Warmerdam, Max"]
[Result "1/2-1/2"]
[Annotator "TA"]
[ECO "B93"]
[WhiteElo "2509"]
[BlackElo "2679"]
[PlyCount "74"]
[EventDate "2024.09.27"]
[EventType "team-tourn"]
[EventCountry "GER"]
[SourceTitle "playchess.com"]
[Source "ChessBase"]
[SourceQuality "1"]
[WhiteTeam "SV Muelheim Nord"]
[BlackTeam "SG Solingen"]
[TimeControl "40/5400+30:1800+30"]

{[%evp 11,74,0,0,0,0,-10,13,13,28,22,23,16,14,17,29,26,37,26,86,75,93,0,0,0,-8,-12,-18,-43,-35,-29,-44,-29,-25,-35,-42,-35,6,-37,-45,-41,-42,-50,-17,-62,-8,-142,-150,-219,-222,-240,-20,-75,-72,-315,0,0,0,0,0,0,0,0,0,0,0]} 1. e4 {[%emt 0:00:04]} c5 {[%emt 0:00:06]} 2. Nf3 {[%emt 0:00:05][%cal Bg1f3,Bf3d4,Bd4f5][%mdl 32]} d6 {[%emt 0:00:05]} 3. d4 {[%emt 0:00:06]} cxd4 {[%emt 0:00:05]} 4. Nxd4 {[%emt 0:00:05]} Nf6 {[%emt 0:00:06]} 5. Nc3 {[%emt 0:00:06]} a6 {[%emt 0:00:57]} 6. f4 {[%emt 0:00:06]} e5 {[%emt 0:00:11]} 7. Nf5 {[%emt 0:00:05]} Nc6 {[%emt 0:09:37][%cal Of6e4]} 8. Bc4 {[%emt 0:00:26]} Be6 {[%emt 0:02:33]} 9. Bb3 {[%emt 0:00:06]} g6 {[%emt 0:13:59]} 10. fxe5 {[%emt 0:00:30]} Nxe5 {[%emt 0:01:10]} 11. Nd4 {[%emt 0:01:27]} Bxb3 {[%emt 0:06:29]} 12. axb3 {[%emt 0:03:28]} Bg7 {[%emt 0:00:17]} 13. Bg5 {[%emt 0:02:56]} h6 {[%emt 0:02:04]} 14. Bh4 {[%emt 0:00:17]} O-O {[%emt 0:12:56]} (14... Ned7 $11 {remains equal.}) 15. O-O $1 $16 {[%emt 0:01:24]} Ned7 {[%emt 0:00:03]} 16. Qf3 {[%emt 0:21:30] White has more active pieces.} (16. Nd5 $16) 16... Qc7 {[%emt 0:03:19]} 17. Kh1 {[%emt 0:04:08]} Rae8 {[%emt 0:00:56][%cal Of6e4]} 18. Rad1 {[%emt 0:01:55]} b5 {[%emt 0:04:47]} 19. Bg3 {[%emt 0:15:41]} b4 {[%emt 0:04:17]} 20. Nd5 {[%emt 0:01:01]} Qc5 {[%emt 0:04:14]} 21. Nxf6+ {[%emt 0:05:25]} Nxf6 {[%emt 0:00:17]} 22. Rfe1 {[%emt 0:01:17]} d5 $36 {[%emt 0:01:09][%mdl 2048] Black has some pressure.} 23. exd5 {[%emt 0:01:23]} Nxd5 {[%emt 0:00:57]} 24. Rxe8 {[%emt 0:05:12]} (24. Ne2 {keeps more tension.} Ne3 25. Bd6 Qxc2 26. Rc1) 24... Rxe8 {[%emt 0:00:09]} 25. Bf2 {[%emt 0:00:22][%cal Od4f5]} Nf6 {[%emt 0:09:42]} 26. Bg1 {[%emt 0:11:57]} Qc8 {[%emt 0:04:36]} 27. Nc6 {[%emt 0:03:29][%cal Od1d8]} Qb7 {[%emt 0:01:52]} ({Better is} 27... Ne4 $15 28. Nd4 (28. Nxb4 a5 $15) 28... a5) 28. Rd4 {[%emt 0:00:54]} (28. Na5 $11 Qc7 29. Nc4) 28... Re1 $1 $17 {[%emt 0:07:22]} 29. Rxb4 {[%emt 0:09:59]} (29. c3 $17) 29... Qd7 $19 {[%emt 0:00:34]} 30. Nd4 {[%emt 0:05:59]} Rb1 $2 {[%emt 0:03:38]} (30... Bf8 $19 31. Rc4 Ne4) 31. Ra4 {[%emt 0:02:04]} (31. c3 $11 {keeps the balance.}) 31... Qe7 $17 {[%emt 0:02:11]} 32. Rxa6 $2 {[%emt 0:01:46] [#]} (32. Qa8+ $17 {was necessary.} Kh7 33. Nf3) 32... Rxg1+ $2 {[%emt 0:05:00]} 33. Kxg1 $11 {[%emt 0:00:05] Hoping for Ra1. The position is equal.} Qe1+ {[%emt 0:00:03]} 34. Qf1 {[%emt 0:00:05]} Qe3+ {[%emt 0:00:03]} 35. Qf2 {[%emt 0:00:24]} Qc1+ {[%emt 0:00:05]} 36. Qf1 {[%emt 0:00:04]} Qe3+ {[%emt 0:00:04]} 37. Qf2 {[%emt 0:00:09]} Qc1+ {[%emt 0:00:11] Weighted Error Value: White=0.35/Black=0.33.  Loses game:     	White=1     	---        Missed win:     	---       	Black=2      Mistake:       	White=4     	Black=2      Inaccurate:     	White=2     	Black=2      OK:         	White=12    	Black=12     Best:        	White=3     	Black=4      Strong:       	White=1     	Black=1} 1/2-1/2

[Event "German Bundesliga 2024-25"]
[Site "Germany"]
[Date "2024.10.06"]
[Round "2.2"]
[White "Anton Guijarro, David"]
[Black "Svane, Rasmus"]
[Result "1/2-1/2"]
[Annotator "TA"]
[ECO "C42"]
[WhiteElo "2667"]
[BlackElo "2629"]
[PlyCount "148"]
[EventDate "2024.09.27"]
[EventType "team-tourn"]
[EventCountry "GER"]
[SourceTitle "playchess.com"]
[Source "ChessBase"]
[SourceQuality "1"]
[WhiteTeam "Viernheim"]
[BlackTeam "Hamburg"]
[TimeControl "40/5400+30:1800+30"]

{[%evp 15,148,28,36,20,19,16,16,27,9,11,19,15,14,17,18,24,32,15,18,1,6,0,13,7,11,0,0,0,0,0,0,0,0,0,0,0,0,-66,-19,-126,-60,-96,-88,-80,-91,-71,0,0,0,-2,-5,-89,-85,-510,-115,-487,-129,-172,-66,-61,-79,-92,-107,-286,-288,-281,-156,-147,0,-201,-172,-184,-183,-163,-189,-178,-184,-277,0,0,0,-317,-291,-304,-295,-274,-282,-277,-187,-168,0,0,0,0,0,0,0,0,0,0,0,0,0,0,0,0,0,0,0,0,0,0,0,0,0,0,0,0,0,0,0,0,0,0,0,0,0,0,0,0,0,0,0,0,0]} 1. e4 e5 2. Nf3 Nf6 {[%cal Bg8f6,Bf6e4,Be4d6][%mdl 32]} 3. Nxe5 d6 4. Nf3 Nxe4 5. d4 d5 6. Bd3 Bf5 7. O-O Be7 8. Re1 O-O 9. Nbd2 Nd6 10. Nf1 $1 Bxd3 11. Qxd3 c6 12. Bf4 Na6 13. Re2 Nc7 14. Rae1 Ne6 15. Bxd6 Bxd6 16. g3 {Dodges Nf4} Qf6 17. Ne5 Bxe5 18. Rxe5 Rae8 19. h4 {[%cal Bh2h4,Bh4h5,Bh5h6][%mdl 32]} Qd8 20. h5 {[%cal Oh5h6]} Nc7 21. Nh2 {[%cal Oh5h6]} f6 22. R5e3 Qd7 23. h6 g6 24. Qa3 {[%cal Oe3e7] aiming for Re7!} Nb5 {[%csl LRa3,LRd4]} 25. Qb4 {Hoping for Rxe8.} Kf7 26. a4 (26. Ng4 $11 Rxe3 (26... Qxg4 27. Re7+ Kg8 28. Rxe8 c5 29. Qxb5) 27. Nxe3) 26... Nd6 (26... Rxe3 $15 27. Rxe3 Nd6) 27. Qc5 (27. Rxe8 $11 Rxe8 28. Rxe8 Kxe8 29. Ng4) 27... a6 (27... Rxe3 $17 28. Rxe3 b6) 28. a5 Nf5 {[%csl LRe3,LRh6]} (28... Rxe3 {simplifies} 29. Rxe3 g5 30. Re1 Rd8) 29. Rxe8 Rxe8 30. Rxe8 Kxe8 $17 {[%mdl 4096] Endgame. KQN-KQN} (30... Qxe8 $17 31. Qb4 Qe7) 31. Ng4 $11 Kf7 {[%cal Of5g3]} 32. Qa7 $1 Qc8 33. Kh2 (33. Qb6 $1 $11) 33... g5 $1 $17 34. Kh3 $2 {[%mdl 8192]} (34. b3 $17 {is a better chance.}) 34... Kg6 $2 (34... Nxh6 $19 {is more deadly.} 35. f3 Nf5) 35. Qc5 $2 {[%mdl 8192]} (35. Kh2 $17) 35... Qe8 $2 (35... Nxh6 $19 {and Black stays clearly on top.} 36. f3 Nxg4 37. fxg4 h5) 36. b3 Nxh6 (36... Qe6 $19 37. Qf8 Nxd4) 37. Nxh6 $15 {[%emt 0:08:04]} Kxh6 $19 {[%emt 0:08:08] KQ-KQ} 38. Qd6 {[%emt 0:00:30]} Kg6 {[%emt 0:00:30]} 39. Qc7 $2 {[%emt 0:00:30]} (39. g4 $17 {was called for.}) 39... Qe4 $1 {[%emt 0:00:30][%csl LRc2,LRd4]} 40. Kh2 {[%emt 0:00:30] Repels Qh1+} Qxc2 {[%emt 0:00:30]} ({Black should try} 40... Qxd4 $19 41. Kg2 Qe4+ 42. Kf1 Qxc2 43. Qxb7 Qd3+ 44. Ke1 Qc3+ 45. Kf1 Qxa5) 41. Kg2 $17 {[%emt 0:30:30]} Qxb3 {[%emt 0:30:30]} ({Black should play} 41... Qe4+ $17 42. Kg1 Qe1+ (42... Qxd4 43. Qxb7 Qa1+ 44. Kg2 $17) 43. Kg2 Qe4+ 44. Kg1 Qxd4 45. Qxb7 Qa1+ 46. Kg2 Qxa5 47. Qxc6 Qb5 48. Qc2+ Kg7 49. Qc7+ Kf8 50. Qxh7 d4 (50... Qxb3 51. g4 $17)) 42. Qc8 $2 {[%emt 0:00:30]} (42. Qd7 $1 $11 {and White has nothing to worry.}) 42... Qb4 $1 $19 {[%emt 0:00:30][%csl LRa5,LRd4][%cal Ob4e7]} 43. Qg8+ {[%emt 0:00:30]} Kh6 {[%emt 0:00:30]} 44. Qf7 {[%emt 0:00:30]} Qxd4 {[%emt 0:00:30] White must now prevent ...Qe4+.} (44... Qxa5 45. Qxf6+ Kh5 46. g4+ (46. Qf7+ Kh6 47. Qf6+ Kh5 48. g4+ Kh4 49. Qf7 Kxg4 50. Qf3+ Kh4 51. Qh3#) 46... Kh4 47. Qf7 Kxg4 48. Qf3+ Kh4 49. Qh3#) 45. Qf8+ {[%emt 0:00:30]} Kg6 $1 {[%emt 0:00:30]} 46. Qe8+ {[%emt 0:00:30]} (46. Qg8+ $142 Kf5 (46... Kh6 $2 47. Qf8+ Kg6 48. Qg8+ Kf5 49. Qxh7+ Ke6 50. Qxb7 $17) 47. Qxh7+ Ke6 48. Qxb7) 46... Kh6 $2 {[%emt 0:00:30]} (46... Kf5 $19 {...Qe4+ would now be deadly.} 47. Qd7+ Ke4 48. Qxh7+ f5) 47. Qf8+ $11 {[%emt 0:00:30]} Kg6 $2 {[%emt 0:00:30][%mdl 8192]} (47... Kh5 $11 48. Qe8+ Kh6 49. Qf8+) 48. Qe8+ $1 $19 {[%emt 0:00:30]} Kf5 $1 {[%emt 0:00:30] Threatens to win with ...Qe4+.} 49. Qd7+ {[%emt 0:00:30] [#]} Ke4 $1 {[%emt 0:00:30]} 50. Qxh7+ {[%emt 0:00:30]} f5 {[%emt 0:00:30] ...g4 is the strong threat.} 51. g4 {[%emt 0:00:30][%csl Gg4][%cal Rh7f5]} Qf6 {[%emt 0:00:30]} 52. Qxb7 {[%emt 0:00:30] [#]} fxg4 $2 {[%emt 0:00:30]} (52... f4 $1 $19 {[%cal Rf4f3] Strongly threatening ...f3+.} 53. Qb1+ Ke5 54. Qe1+ Kd6 55. Qb4+ Ke6) 53. Qxa6 $11 {[%emt 0:00:30] The position is equal.} Qf3+ {[%emt 0:00:30]} 54. Kg1 {[%emt 0:00:30]} g3 {[%emt 0:00:30]} 55. Qb6 {[%emt 0:00:30]} Qd1+ {[%emt 0:00:30]} 56. Kg2 {[%emt 0:00:30]} Qf3+ {[%emt 0:00:30]} 57. Kg1 $1 {[%emt 0:00:30] Qe3+ would kill now.} gxf2+ {[%emt 0:00:30]} 58. Qxf2 {[%emt 0:00:30]} Qd1+ {[%emt 0:00:30]} 59. Kh2 {[%emt 0:00:30]} Qa4 {[%emt 0:00:30]} 60. Qe2+ {[%emt 0:00:30]} Kf4 {[%emt 0:00:30]} 61. Qf2+ {[%emt 0:00:30]} Ke5 {[%emt 0:00:30]} 62. Qb6 {[%emt 0:00:30]} Qc2+ {[%emt 0:00:30]} 63. Kg3 {[%emt 0:00:30]} Qd3+ {[%emt 0:00:30]} 64. Kf2 {[%emt 0:00:30]} Qd2+ {[%emt 0:00:30]} 65. Kg3 {[%emt 0:00:30]} Qe1+ {[%emt 0:00:30]} 66. Kg2 {[%emt 0:00:30]} Qe4+ {[%emt 0:00:30]} 67. Kg1 {[%emt 0:00:30]} Qe1+ {[%emt 0:00:30]} (67... Qd4+ 68. Qxd4+ Kxd4 69. a6 g4 70. a7 Ke4 71. a8=Q (71. a8=B $2 c5 $19) 71... c5 72. Kf2) 68. Kg2 {[%emt 0:00:30]} Qe4+ {[%emt 0:00:30]} 69. Kg1 {[%emt 0:00:30]} Qg4+ {[%emt 0:00:30]} (69... Qd4+ 70. Qxd4+ Kxd4 71. a6 Ke4 72. a7 g4 73. a8=Q (73. a8=B c5 $19) 73... c5 74. Qc8) 70. Kf2 {[%emt 0:00:30]} Qf5+ {[%emt 0:00:30]} (70... Qd4+ 71. Qxd4+ Kxd4 72. a6 Ke4 73. a7 g4 74. a8=Q (74. a8=B $2 c5 $19) 74... c5 75. Qg8 g3+ 76. Qxg3 (76. Kxg3 Ke5 77. Qe8+ Kf5 78. Qc6 Ke5 79. Qxc5 Ke4 80. Kf2 Ke5)) 71. Kg1 {[%emt 0:00:30]} Qg4+ {[%emt 0:00:30]} 72. Kf2 {[%emt 0:00:30]} Qf4+ {[%emt 0:00:30]} (72... Qd4+ 73. Qxd4+ Kxd4 74. a6 Ke4 75. a7 g4 76. a8=Q (76. a8=B $2 {perishes.} c5 $19) 76... c5 77. Qg8 g3+ 78. Qxg3 (78. Kxg3 Ke5 79. Kf3 c4 80. Qg5+ Kd6 81. Ke3 Kc5 82. Qe7+ Kc6)) 73. Kg2 {[%emt 0:00:30] White wants to mate with Qb8+.} Qd2+ {[%emt 0:00:30]} 74. Kg3 {[%emt 0:00:30]} Qd3+ {[%emt 0:00:30] Weighted Error Value: White=0.45/Black=0.36.  Loses game:     	White=4     	---        Missed win:     	---       	Black=4      Mistake:       	White=4     	Black=7      Inaccurate:     	White=2     	Black=1      OK:         	White=28    	Black=12     Best:        	White=6     	Black=3      Strong:       	White=4     	Black=6} 1/2-1/2